Cogmind - Beta 9.1 @@@ ROGUE MODE // 2019.11.09 @ 18:04:14 Player: PlasticHeart Result: Self-destructed Performance ------------- Evolutions (3) 1500 Regions Visited (5) 1000 Robots Destroyed (73) 365 Value Destroyed (2190) 2190 Prototype IDs (4) 80 Alien Tech Used (0) 0 Bonus (44) 44 TOTAL SCORE: 5179 Bonus ------- High Alert Combat Kills 44 Cogmind --------- Core Integrity 700/700 Matter 300/300 Energy 160/160 System Corruption 0% Temperature Cool (0) Location -7/Factory Parts ------- Power (1) Light Nuclear Core Propulsion (2) Armored Wheel Armored Wheel Utility (8) Medium Storage Unit Medium Storage Unit Large Storage Unit Large Storage Unit Large Storage Unit Weapon (2) Advanced Beam Cannon Inventory (30) Light Nuclear Core Light Nuclear Core Light Nuclear Core Armored Wheel Cesium-ion Thruster Cesium-ion Thruster Advanced Weight Redist. System Advanced Weight Redist. System Structural Scanner Hacking Suite Heavy EM Pulse Gun Improved EM Shotgun Improved EM Shotgun Spread Laser Light EM Pulse Cannon Light EM Pulse Cannon Light EM Pulse Cannon Light EM Pulse Cannon Light EM Pulse Cannon EM Pulse Cannon Improved Assault Rifle Light Cannon Improved Light Cannon Advanced EMP Blaster Advanced EMP Blaster Grenade Launcher Mini Grenade Launcher Scythe Peak State ------------ Power Light Nuclear Core Propulsion Armored Wheel Armored Wheel Utility Medium Storage Unit Medium Storage Unit Large Storage Unit Large Storage Unit Large Storage Unit Weapon Advanced Beam Cannon Advanced EMP Blaster Inventory Light Nuclear Core Light Nuclear Core Light Nuclear Core Armored Wheel Cesium-ion Thruster Cesium-ion Thruster Advanced Weight Redist. System Advanced Weight Redist. System Structural Scanner Hacking Suite Heavy EM Pulse Gun Improved EM Shotgun Improved EM Shotgun Spread Laser Light EM Pulse Cannon Light EM Pulse Cannon Light EM Pulse Cannon Light EM Pulse Cannon Light EM Pulse Cannon EM Pulse Cannon Improved Assault Rifle Light Cannon Improved Light Cannon Grenade Launcher Mini Grenade Launcher Scythe [Rating: 25] Favorites ----------- Power Nuclear Core Engine Light Ion Engine Power Core Nuclear Core Propulsion Armored Wheel Leg Aluminum Leg Wheel Armored Wheel Utility Medium Storage Unit Device Improved Heat Sink Storage Medium Storage Unit Protection Light Armor Plating Weapon Assault Rifle Energy Gun Spread Laser Energy Cannon Light EM Pulse Cannon Ballistic Gun Assault Rifle Ballistic Cannon Light Cannon Launcher Grenade Launcher Slashing Weapon Scythe Build | -11 -10 -9 -9 -8 -7 ------- Run | Scr Mat Mat Min Mat Fac Slots Evolved 6 | . . 2 . 2 2 Power . | . . . . . . Propulsion . | . . . . . . Utility 6 | . . 2 . 2 2 Weapon . | . . . . . . Parts Attached 79 | 6 7 18 4 44 . Power 9 | 1 1 2 1 4 . Engine 2 | 1 1 . . . . Core 7 | . . 2 1 4 . Reactor . | . . . . . . Propulsion 14 | 2 2 5 1 4 . Treads . | . . . . . . Leg 4 | 2 2 . . . . Wheel 10 | . . 5 1 4 . Hover . | . . . . . . Flight . | . . . . . . Utility 15 | 1 2 5 . 7 . Device 1 | . . . . 1 . Storage 13 | 1 2 4 . 6 . Processor . | . . . . . . Hackware . | . . . . . . Protection 1 | . . 1 . . . Artifact . | . . . . . . Weapon 41 | 2 2 6 2 29 . Energy Gun 6 | . . 3 . 3 . Energy Cannon 10 | . . . . 10 . Ballistic Gun 16 | 2 2 3 2 7 . Ballistic Cannon 4 | . . . . 4 . Launcher 3 | . . . . 3 . Special Weapon . | . . . . . . Impact Weapon . | . . . . . . Slashing Weapon 2 | . . . . 2 . Piercing Weapon . | . . . . . . Special Melee Weapon . | . . . . . . Unidentified Prototypes 4 | . . 1 . 3 . Parts Lost 22 | . 1 3 4 14 . Power 5 | . 1 1 1 2 . Propulsion 5 | . . . 1 4 . Utility 1 | . . . . 1 . Weapon 11 | . . 2 2 7 . Highest Loss Streak 4 | . 1 1 4 3 . Average Slot Usage (%) 96 | . 92 97 96 97 . Engine 3 | . 13 2 . . . Core 6 | . . 7 9 8 . Leg 5 | . 26 . . . . Wheel 15 | . . 21 20 17 . Device 2 | . . . . 4 . Storage 41 | . 23 40 44 48 . Energy Gun 1 | . . 5 . . . Energy Cannon 2 | . . . . 5 . Ballistic Gun 15 | . 27 16 20 8 . Ballistic Cannon 1 | . . . . 2 . Naked Turns . | . . . . . . Heaviest Build 85 | 10 30 53 53 85 . Greatest Support 24 | 20 20 24 24 24 . Greatest Overweight (x) 5 | . 5 2 2 3 . Average Overweight (x) 1 | . . 1 1 2 . Largest Inventory Capacity 34 | 6 14 22 22 34 . Average Capacity 23 | 4 10 20 22 31 . Most Carried 28 | 4 11 22 20 28 . Average Carried 16 | 3 3 20 16 21 . Final Capacity 30 | 6 14 22 22 30 30 Final Carried 28 | 1 11 20 17 28 28 Class Distribution -------------------- 73% | Hauler-Mutant 23% | Mutant Dominant Class ---------------- Mutant | -10/Materials Hauler-Mutant | -9/Materials Hauler-Mutant | -9/Mines Hauler-Mutant | -8/Materials Hauler-Mutant | -7/Factory Resources | -11 -10 -9 -9 -8 -7 ----------- Run | Scr Mat Mat Min Mat Fac Matter Collected 2107 | 208 240 402 201 1056 . Remotely . | . . . . . . Salvage Created 2709 | . 193 770 130 1616 . Parts 168 | . 21 51 1 95 . Haulers Intercepted 6 | . 1 2 . 3 . Recyclers Shooed 2 | . . 2 . . . Parts Field Recycled . | . . . . . . Retrieved Matter . | . . . . . . Parts Self-Destructed . | . . . . . . Prevented . | . . . . . . Kills | -11 -10 -9 -9 -8 -7 ------- Run | Scr Mat Mat Min Mat Fac Combat Hostiles Destroyed 60 | . 9 16 3 32 . Guns 47 | . 9 16 3 19 . Cannons 11 | . . . . 11 . AOE 1 | . . . . 1 . Classes Destroyed 10 | . 3 3 . 4 . Hauler 6 | . 1 2 . 3 . Recycler 1 | . . 1 . . . Operator 3 | . 1 . . 2 . Watcher 3 | . . . . 3 . Swarmer 18 | . 9 3 . 6 . Grunt 26 | . . 9 3 14 . Brawler 1 | . . . . 1 . Duelist 1 | . . . . 1 . Sentry 12 | . . 4 . 8 . Hunter 2 | . . . . 2 . Best Kill Streak 8 | . 3 5 3 8 . Combat Bots Only 7 | . 3 5 3 7 . Max Kills in Single Turn 2 | . 1 2 1 1 . Gunslinging . | . . . . . . Exploded 1 | . . . . 1 . Melee . | . . . . . . Uniques/NPCs Destroyed . | . . . . . . Combat | -11 -10 -9 -9 -8 -7 -------- Run | Scr Mat Mat Min Mat Fac Damage Taken 4186 | . 292 1160 658 2076 . Core 651 | . 88 175 163 225 . Absorbed by Shields . | . . . . . . Core Remaining (%) 59 | 100 64 . 15 59 . Volleys Fired 279 | . 37 79 19 144 . Largest 2 | . 2 2 2 2 . Hottest 124 | . 40 88 88 124 . Shots Fired 525 | . 67 147 32 279 . Gun 419 | . 67 147 32 173 . Cannon 103 | . . . . 103 . Launcher 3 | . . . . 3 . Special . | . . . . . . Kinetic 404 | . 67 119 29 189 . Thermal 44 | . . 28 3 13 . Explosive 3 | . . . . 3 . Electromagnetic 74 | . . . . 74 . Robot Hit Streak 12 | . 5 12 11 12 . Robot Miss Streak 5 | . 5 4 3 5 . Penetration Max . | . . . . . . Secondary Targets 9 | . . 6 1 2 . Max Gunslinging Chain 1 | . . 1 1 1 . Shots Hit Robots 354 | . 35 117 25 177 . Core Hits 150 | . 13 44 9 84 . Critical Hits 4 | . . 1 . 3 . Critical Kills 2 | . . . . 2 . Critical Parts Destroyed 2 | . . 1 . 1 . Melee Attacks 3 | . . . . 3 . Impact . | . . . . . . Slashing 3 | . . . . 3 . Piercing . | . . . . . . Sneak Attacks . | . . . . . . Combat Hostiles . | . . . . . . Follow-up Attacks . | . . . . . . Damage Inflicted 5449 | . 352 1365 389 3343 . Guns 3764 | . 352 1365 389 1658 . Cannons 1350 | . . . . 1350 . Explosions 326 | . . . . 326 . Melee . | . . . . . . Ramming 9 | . . . . 9 . Kinetic 3580 | . 352 1086 342 1800 . Thermal 485 | . . 279 47 159 . Explosive 290 | . . . . 290 . Electromagnetic 1085 | . . . . 1085 . Impact . | . . . . . . Slashing . | . . . . . . Piercing . | . . . . . . Highest Corruption . | . . . . . . Average Corruption . | . . . . . . Corruption Purged . | . . . . . . Overload Shots . | . . . . . . Overflow Damage 22 | . . . . 22 . Projectiles 8 | . . . . 8 . Explosions 14 | . . . . 14 . Melee . | . . . . . . Knockbacks 2 | . . . . 2 . Impact . | . . . . . . Kinetic 2 | . . . . 2 . Secondary . | . . . . . . Self-Inflicted Damage 4 | . . . . 4 . Shots . | . . . . . . Rammed 1 | . . . . 1 . Targets Rammed 1 | . . . . 1 . Kicked . | . . . . . . Crushed . | . . . . . . Highest Temperature 174 | . . 171 174 174 . Average Temperature 64 | . . 62 113 54 . Received Heat Transfer 1773 | . . 486 369 918 . Siege Activations . | . . . . . . Robots Corrupted 1 | . . . . 1 . Combat Hostiles 1 | . . . . 1 . Parts Fried 7 | . . . . 7 . Impact Corruptions . | . . . . . . Robots Melted . | . . . . . . Combat Hostiles . | . . . . . . Parts Melted . | . . . . . . Heat Transferred 627 | . . 350 60 217 . Parts Sabotaged . | . . . . . . Parts Stolen . | . . . . . . Parts Stripped . | . . . . . . Power Chain Reactions 1 | . . . . 1 . Missiles Intercepted . | . . . . . . Alert | -11 -10 -9 -9 -8 -7 ------- Run | Scr Mat Mat Min Mat Fac Peak Influence 450 | . 106 197 99 450 . Average Influence 168 | . 31 101 88 267 . Maximum Alert Level 2 | . . . . 2 . Low Security (%) 65 | . . . . . . Level 1 24 | . . . . . . Level 2 10 | . . . . . . Level 3 . | . . . . . . Level 4 . | . . . . . . Level 5 . | . . . . . . High Security . | . . . . . . Max Security . | . . . . . . Squads Dispatched 5 | . 1 1 . 3 . Investigation 2 | . . 1 . 1 . Extermination . | . . . . . . Reinforcement 3 | . 1 . . 2 . Assault . | . . . . . . Garrison . | . . . . . . Intercept . | . . . . . . Construction Impeded . | . . . . . . Haulers Reinforced . | . . . . . . Stealth | -11 -10 -9 -9 -8 -7 --------- Run | Scr Mat Mat Min Mat Fac Distress Signals 6 | . 1 3 . 2 . Communications Jammed . | . . . . . . Distress Signals . | . . . . . . Times Spotted 105 | . 19 26 3 57 . Peak Tracking Total 7 | . 4 7 3 5 . Tactical Retreats 9 | . 2 1 . 6 . Traps | -11 -10 -9 -9 -8 -7 ------- Run | Scr Mat Mat Min Mat Fac Traps Triggered 1 | . 1 . . . . Indirectly . | . . . . . . Trap Hack Attempts . | . . . . . . Triggered . | . . . . . . Disarmed . | . . . . . . Reprogrammed . | . . . . . . Reused . | . . . . . . Traps Extracted . | . . . . . . Installed . | . . . . . . Triggered . | . . . . . . Machines | -11 -10 -9 -9 -8 -7 ---------- Run | Scr Mat Mat Min Mat Fac Machines Disabled 2 | . . 1 . 1 . Max in Single Turn 1 | . . 1 . 1 . Machines Sabotaged . | . . . . . . Garrisons Compromised . | . . . . . . Overloaded Fab Kills . | . . . . . . Fab Network Shutdowns . | . . . . . . Hacking | -11 -10 -9 -9 -8 -7 --------- Run | Scr Mat Mat Min Mat Fac Machines Accessed 10 | . 3 2 . 5 . Terminals 10 | . 3 2 . 5 . Fabricators . | . . . . . . Repair Stations . | . . . . . . Recycling Units . | . . . . . . Scanalyzers . | . . . . . . Garrison Access . | . . . . . . Total Hacks 19 | . 7 6 . 6 . Successful 13 | . 5 3 . 5 . Failed 6 | . 2 3 . 1 . Catastrophic 2 | . . 1 . 1 . Database Lockouts . | . . . . . . Manual 5 | . 3 . . 2 . Terminals 19 | . 7 6 . 6 . Fabricators . | . . . . . . Repair Stations . | . . . . . . Recycling Units . | . . . . . . Scanalyzers . | . . . . . . Garrison Access . | . . . . . . Terminal Hacks 10 | . 3 3 . 4 . Unreport Threat 3 | . 1 1 . 1 . Locate Traps 4 | . 1 2 . 1 . Recall Investigation 1 | . . . . 1 . Recall Reinforcements 1 | . 1 . . . . Hauler Manifests 1 | . . . . 1 . Fabricator Hacks . | . . . . . . Repair Station Hacks . | . . . . . . Recycling Unit Hacks . | . . . . . . Scanalyzer . | . . . . . . Garrison Access Hacks . | . . . . . . Unauthorized Hacks 6 | . 4 . . 2 . Terminals 3 | . 2 . . 1 . Track 2 | . 1 . . 1 . Botnet 1 | . 1 . . . . Fabricators . | . . . . . . Repair Stations . | . . . . . . Recycling Units . | . . . . . . Scanalyzers . | . . . . . . Garrison Access . | . . . . . . Data Cores Recovered . | . . . . . . Used . | . . . . . . Hacking Detections 7 | . 2 2 . 3 . Full Trace Events 1 | . . 1 . . . Feedback Events . | . . . . . . Feedback Blocked . | . . . . . . Robot Schematics Acquired . | . . . . . . Robots Built . | . . . . . . Matter . | . . . . . . Time . | . . . . . . Total Robot Build Rating . | . . . . . . Part Schematics Acquired . | . . . . . . Parts Built . | . . . . . . Matter . | . . . . . . Time . | . . . . . . Total Part Build Rating . | . . . . . . Parts Repaired . | . . . . . . Time . | . . . . . . Parts Recycled . | . . . . . . Recycled Matter . | . . . . . . Retrieved Matter . | . . . . . . Retrieved Components . | . . . . . . Parts Scanalyzed . | . . . . . . Part Schematics Acquired . | . . . . . . Parts Damaged . | . . . . . . Bothacking | -11 -10 -9 -9 -8 -7 ------------ Run | Scr Mat Mat Min Mat Fac Used RIF Installer . | . . . . . . Robots Hacked . | . . . . . . Non-combat . | . . . . . . Combat . | . . . . . . Robot Hacks Applied . | . . . . . . Relay Couplers Released . | . . . . . . Robots Rewired . | . . . . . . Allies Hacked . | . . . . . . Hacks Repelled . | . . . . . . Allies | -11 -10 -9 -9 -8 -7 -------- Run | Scr Mat Mat Min Mat Fac Total Allies . | . . . . . . Largest Group . | . . . . . . Highest-Rated Group . | . . . . . . Highest-Rated Ally . | . . . . . . Total Orders . | . . . . . . Ally Attacks . | . . . . . . Total Damage . | . . . . . . Kills . | . . . . . . Allies Corrupted . | . . . . . . Allies Melted . | . . . . . . Intel | -11 -10 -9 -9 -8 -7 ------- Run | Scr Mat Mat Min Mat Fac Robot Analysis Total . | . . . . . . Derelict Logs Recovered . | . . . . . . Drone Launches . | . . . . . . Drone Recoveries . | . . . . . . Exploration | -11 -10 -9 -9 -8 -7 ------------- Run | Scr Mat Mat Min Mat Fac Turns Passed 2956 | 40 572 672 200 1472 . Spaces Moved 1580 | 32 335 337 132 744 . Core 17 | 13 4 . . . . Treads . | . . . . . . Legs 369 | 19 331 19 . . . Wheels 1194 | . . 318 132 744 . Hover . | . . . . . . Flight . | . . . . . . Fastest Speed 50 | 50 120 100 100 110 . Average Speed 118 | 91 132 109 109 119 . Slowest Speed 300 | 120 300 150 110 120 . Overloaded Moves . | . . . . . . Propulsion Burnouts . | . . . . . . Robots Hopped . | . . . . . . Cave-ins Triggered . | . . . . . . Exploration Rate (%) 39 | 3 58 36 35 67 . Regions Visited 5 Branch Regions 1 Pre-discovered Areas . | . . . . . . Known Exits Taken . | . . . . . . Unknown Exits Taken 5 | 1 1 1 1 1 . Scrap Searched 2 | . . . 2 . . Spaces Dug 3 | . . . . 3 . Terrain Destroyed 32 | . . . . 32 . Melee 3 | . . . . 3 . Projectile 1 | . . . . 1 . AOE 28 | . . . . 28 . Actions | -11 -10 -9 -9 -8 -7 --------- Run | Scr Mat Mat Min Mat Fac Total 2141 | 41 402 499 155 1044 . Wait 100 | . 15 20 . 65 . Move 1575 | 31 334 336 131 743 . Hop . | . . . . . . Pick Up 70 | 4 9 25 1 31 . Fast Attach 18 | 3 4 7 . 4 . Attach 28 | 3 1 4 4 16 . Detach . | . . . . . . Swap 34 | . 2 7 . 25 . Drop 33 | . . 21 . 12 . Fire 279 | . 37 79 19 144 . Melee 3 | . . . . 3 . Ram 1 | . . . . 1 . Kick . | . . . . . . Crush . | . . . . . . Escape Stasis . | . . . . . . Rewire . | . . . . . . Trap . | . . . . . . Miscellaneous . | . . . . . . Route ------- -11/Scrapyard -10/Materials -9/Materials (discovered 2 exits: *Mat / [*Min]) -9/Mines -8/Materials (discovered 3 exits: [*Fac x2] / [*Sto]) -7/Factory History --------- Turn | Location | Event 4 | -11/Scrapyard | Discovered new exit (range 16) 41 | -11/Scrapyard | Entered Materials 310 | -10/Materials | Build established: Mutant 543 | -10/Materials | Discovered new exit (range 5) 613 | -10/Materials | Entered another Materials area 613 | -9/Materials | Evolved 2 slots: Utility x2 1077 | -9/Materials | Build established: Hauler-Mutant 1099 | -9/Materials | Discovered new exit (range 6) 1269 | -9/Materials | Discovered new exit (range 15) 1285 | -9/Materials | Entered Mines 1288 | -9/Mines | Core integrity fell below 50% 1299 | -9/Mines | Met a Derelict bent on vengeance 1328 | -9/Mines | Core integrity fell below 20% 1344 | -9/Mines | Lost 4 parts (1p1n2w) 1481 | -9/Mines | Discovered new exit (range 5) 1485 | -9/Mines | Entered Materials 1485 | -8/Materials | Evolved 2 slots: Utility x2 1703 | -8/Materials | Lost 3 parts (1n2w) 2022 | -8/Materials | Destroyed 7 combat bots 2026 | -8/Materials | Lost 3 parts (1n2w) 2126 | -8/Materials | Discovered new exit (range 16) 2307 | -8/Materials | Discovered new exit (range 14) 2916 | -8/Materials | Discovered new exit (range 3) 2957 | -8/Materials | Entered Factory 2957 | -7/Factory | Evolved 2 slots: Utility x2 2957 | -7/Factory | Self-destructed Last Messages --------------- 02927_ Destroyed Lgt. Treads. 02927_ A-02 Transporter destroyed. 02930_ Acquired 10 matter. 02932_ Dropped Lgt. EM Pulse Cannon. 02933_ Acquired Prototype Energy Gun. 02933_ Identified Imp. EM Shotgun. 02933_ Malfunction: Meltdown. 02933_ Lrg. Storage Unit damaged (-134). 02933_ Lrg. Storage Unit damaged (-86). 02935_ Acquired Imp. EM Shotgun. 02941_ Acquired Prototype Launcher. 02942_ Identified Adv. EMP Blaster. 02942_ Malfunction: Arm. Wheel damaged (-41). 02944_ Dropped Faulty Adv. EMP Blaster. 02945_ Acquired Adv. EMP Blaster. 02951_ Acquired 40 matter. 02957_ R-06 Scavenger collects Lgt. Treads. PARAMETERS=UTILITY_2 LOCATION=UNKNOWN GOAL=ESCAPE Map ----- +----------------------------------------------------+ | ??????????????????????????????????????????????? | | ??????????????????????????????????????????????? | | ??????????????????????????????????????????????? | | ??????????????????????????????????????????????? | | ??????????????????????????????????????????????? | | ??????????????????????????????????????????????? | | ??????????????????????????????????????????????? | | ??????????????????????????????????????????????? | | ??????????????????????????????????????????????? | | ??????????????????????????????????????????????? | | ??????????????????????????????????????????????? | | ??????????????????????????????????????????????? | | ??????????????????????????????????????????????? | | ??????????????????????????????????????????????? | | ??????????????????????????????????????????????? | | ??????????????????????????????????????????????? | | ??????????????????????????????????????????????? | | ??????????????????????????????????????????????? | | ??????????????????????????????????????????????? | | ??????????????????????????????????????????????? | | ??????????????????????????????????????????????? | | ??????????????????????????????????????????????? | | ???????????????????#########??????????????????? | | ???????????????????# #??????????????????? | | ???????????????????# #??????????????????? | | ???????????????????# @ #??????????????????? | | ???????????????????# #??????????????????? | | ???????????????????# #??????????????????? | | ???????????????????### #??????????????????? | | ?????????????????????# #??????????????????? | | ?????????????????????# ?????????????????? | | ?????????????????????# ????????????????? | | ?????????????????????# ???????????????? | | ?????????????????????# ??????????????? | | ?????????????????????? ?????????????? | | ??????????????????????############????????????? | | ??????????????????????????????????????????????? | | ??????????????????????????????????????????????? | | ??????????????????????????????????????????????? | | ??????????????????????????????????????????????? | | ??????????????????????????????????????????????? | | ??????????????????????????????????????????????? | | ??????????????????????????????????????????????? | | ??????????????????????????????????????????????? | | ??????????????????????????????????????????????? | | ??????????????????????????????????????????????? | | ??????????????????????????????????????????????? | | ??????????????????????????????????????????????? | | ??????????????????????????????????????????????? | | ??????????????????????????????????????????????? | +----------------------------------------------------+ Best States ------------- Heat Dissipation 45 Energy Generation 14 Energy Capacity 240 Matter Stores 300 Matter Capacity 300 Sight Range 16 Terrain Scan Density 10 Armor Coverage 150 Evasion (%) 50 Item Schematics ----------------- None Robot Schematics ------------------ None Fabricated ------------ Nothing Alien Tech Used ----------------- None Achievements -------------- None Challenges ------------ None Game ------ Seed TachyonFissionMediator Manual? 0 Play Time 00:29:54 Cumulative 613.8 hours Start 2019.11.09 @ 17:34:05 End 2019.11.09 @ 18:04:14 Sessions 1 Manual Loads 0 Difficulty Rogue Special Mode None Game No. 349 Rogue 349 Adventurer 0 Explorer 0 Win Type - Total 50 Types 28/2/12/5/1/1/1 Lore% 89 Gallery% 83 Achievement% 66 Wizard Run 0 Options --------- ASCII 0 Keyboard 0 Movement Mouse Keybinds 0 Fullscreen 0 Font 32/SmallcapsGlow Map View 76x50 Tactical HUD 1 Map Filters NONE Filters NONE Steam 0 RUN: f116d4c4-ab9c-479d-8a1d-2a86092b1f83